[Event "Titled Tuesday Blitz May 18 2021"]
[White "Pantsulaia, Levan"]
[Black "Spata, German"]
[WhiteFideId "13602071"]
[BlackFideId "113026"]
[WhiteElo "2530"]
[BlackElo "2238"]
[Result "1-0"]
[Round "02"]
[TimeControl "180+1"]
[Date "2021.05.18"]
[WhiteClock "0:02:05"]
[BlackClock "0:00:37"]

1. Nf3 {[%clk 0:03:00]}  d5 {[%clk 0:02:55]} 2. g3 {[%clk 0:03:00]}  Nf6 {[%clk 0:02:51]} 3. Bg2 {[%clk 0:03:00]}  Bf5 {[%clk 0:02:50]} 4. c4 {[%clk 0:02:59]}  c6 {[%clk 0:02:50]} 5. cxd5 {[%clk 0:02:59]}  cxd5 {[%clk 0:02:50]} 6. Qb3 {[%clk 0:03:00]}  Qb6 {[%clk 0:02:50]} 7. Qxb6 {[%clk 0:02:59]}  axb6 {[%clk 0:02:50]} 8. Nc3 {[%clk 0:03:00]}  Nc6 {[%clk 0:02:25]} 9. d3 {[%clk 0:03:00]}  e6 {[%clk 0:02:10]} 10. Nb5 {[%clk 0:02:58]}  Bb4+ {[%clk 0:02:04]} 11. Bd2 {[%clk 0:02:57]}  Bxd2+ {[%clk 0:02:01]} 12. Kxd2 {[%clk 0:02:58]}  Kd7 {[%clk 0:01:58]} 13. Nfd4 {[%clk 0:02:58]}  Bg6 {[%clk 0:01:47]} 14. f4 {[%clk 0:02:56]}  Ne8 {[%clk 0:01:35]} 15. g4 {[%clk 0:02:37]}  Nd6 {[%clk 0:01:19]} 16. f5 {[%clk 0:02:26]}  Nxd4 {[%clk 0:01:15]} 17. Nxd4 {[%clk 0:02:24]}  exf5 {[%clk 0:01:11]} 18. gxf5 {[%clk 0:02:23]}  Bh5 {[%clk 0:00:47]} 19. Bxd5 {[%clk 0:02:21]}  Rhe8 {[%clk 0:00:39]} 20. e4 {[%clk 0:02:16]}  g6 {[%clk 0:00:37]} 21. Rhf1 {[%clk 0:02:08]}  gxf5 {[%clk 0:00:36]} 22. Nxf5 {[%clk 0:02:07]}  Nxf5 {[%clk 0:00:37]} 23. Rxf5 {[%clk 0:02:05]}  Bg6 {[%clk 0:00:37]} 24. Rf6 {[%clk 0:02:05]} 1-0


[Site "https://www.chess.com"]

[Event "Titled Tuesday Blitz May 18 2021"]
[White "Sarana, Alexey"]
[Black "Maiorov, Nikita"]
[WhiteFideId "24133795"]
[BlackFideId "13501720"]
[WhiteElo "2629"]
[BlackElo "2440"]
[Result "1-0"]
[Round "02"]
[TimeControl "180+1"]
[Date "2021.05.18"]
[WhiteClock "0:00:03"]
[BlackClock "0:00:01"]

1. e4 {[%clk 0:03:00]}  e5 {[%clk 0:02:47]} 2. Nf3 {[%clk 0:03:00]}  Nc6 {[%clk 0:02:46]} 3. Bb5 {[%clk 0:03:01]}  a6 {[%clk 0:02:46]} 4. Ba4 {[%clk 0:03:01]}  Nf6 {[%clk 0:02:46]} 5. O-O {[%clk 0:03:01]}  Be7 {[%clk 0:02:46]} 6. Re1 {[%clk 0:03:01]}  b5 {[%clk 0:02:46]} 7. Bb3 {[%clk 0:03:02]}  d6 {[%clk 0:02:46]} 8. c3 {[%clk 0:03:02]}  O-O {[%clk 0:02:45]} 9. h3 {[%clk 0:03:03]}  Na5 {[%clk 0:02:45]} 10. Bc2 {[%clk 0:03:02]}  c5 {[%clk 0:02:45]} 11. d4 {[%clk 0:03:03]}  Nd7 {[%clk 0:02:45]} 12. d5 {[%clk 0:03:02]}  Re8 {[%clk 0:02:43]} 13. Nbd2 {[%clk 0:03:01]}  Nf8 {[%clk 0:02:42]} 14. b4 {[%clk 0:02:55]}  Nb7 {[%clk 0:02:40]} 15. a4 {[%clk 0:02:54]}  Bd7 {[%clk 0:02:37]} 16. a5 {[%clk 0:02:48]}  c4 {[%clk 0:02:33]} 17. Nf1 {[%clk 0:02:47]}  Ng6 {[%clk 0:02:32]} 18. Ng3 {[%clk 0:02:44]}  Nh4 {[%clk 0:02:31]} 19. Nxh4 {[%clk 0:02:20]}  Bxh4 {[%clk 0:02:30]} 20. Qh5 {[%clk 0:02:21]}  g6 {[%clk 0:02:23]} 21. Qh6 {[%clk 0:02:15]}  Bf6 {[%clk 0:02:22]} 22. Qe3 {[%clk 0:02:05]}  Qe7 {[%clk 0:02:18]} 23. Bd2 {[%clk 0:02:00]}  Bc8 {[%clk 0:02:15]} 24. Rf1 {[%clk 0:01:59]}  Rf8 {[%clk 0:02:14]} 25. Ne2 {[%clk 0:01:48]}  Bg7 {[%clk 0:02:13]} 26. Kh2 {[%clk 0:01:37]}  f6 {[%clk 0:02:02]} 27. f4 {[%clk 0:01:34]}  Bh6 {[%clk 0:01:45]} 28. Qg3 {[%clk 0:01:31]}  Qg7 {[%clk 0:01:41]} 29. Rad1 {[%clk 0:01:26]}  Bd7 {[%clk 0:01:40]} 30. Be3 {[%clk 0:01:15]}  Rae8 {[%clk 0:01:39]} 31. Bb6 {[%clk 0:01:14]}  Nd8 {[%clk 0:01:38]} 32. f5 {[%clk 0:01:05]}  Nf7 {[%clk 0:01:30]} 33. Rf2 {[%clk 0:01:02]}  Bc8 {[%clk 0:01:27]} 34. Rdf1 {[%clk 0:01:01]}  gxf5 {[%clk 0:01:25]} 35. Qxg7+ {[%clk 0:00:56]}  Kxg7 {[%clk 0:01:24]} 36. exf5 {[%clk 0:00:56]}  Bb7 {[%clk 0:01:24]} 37. Ng3 {[%clk 0:00:44]}  Bf4 {[%clk 0:01:15]} 38. Rxf4 {[%clk 0:00:43]}  exf4 {[%clk 0:01:15]} 39. Nh5+ {[%clk 0:00:44]}  Kh8 {[%clk 0:01:15]} 40. Nxf4 {[%clk 0:00:43]}  Rg8 {[%clk 0:01:07]} 41. Bd4 {[%clk 0:00:42]}  Ne5 {[%clk 0:01:06]} 42. g4 {[%clk 0:00:39]}  Re7 {[%clk 0:01:05]} 43. Be4 {[%clk 0:00:38]}  Kg7 {[%clk 0:00:58]} 44. Ne6+ {[%clk 0:00:37]}  Kf7 {[%clk 0:00:58]} 45. Rf4 {[%clk 0:00:36]}  h6 {[%clk 0:00:53]} 46. Kg3 {[%clk 0:00:34]}  h5 {[%clk 0:00:51]} 47. Bxe5 {[%clk 0:00:22]}  dxe5 {[%clk 0:00:43]} 48. Rf2 {[%clk 0:00:23]}  Ke8 {[%clk 0:00:37]} 49. Rd2 {[%clk 0:00:22]}  Rh7 {[%clk 0:00:36]} 50. Nc5 {[%clk 0:00:18]}  hxg4 {[%clk 0:00:29]} 51. hxg4 {[%clk 0:00:19]}  Rhg7 {[%clk 0:00:27]} 52. Bf3 {[%clk 0:00:13]}  Bc8 {[%clk 0:00:25]} 53. Kf2 {[%clk 0:00:10]}  Rh8 {[%clk 0:00:23]} 54. Ke3 {[%clk 0:00:08]}  Rh3 {[%clk 0:00:21]} 55. Ke4 {[%clk 0:00:04]}  Rg3 {[%clk 0:00:12]} 56. Rh2 {[%clk 0:00:04]}  R7xg4+ {[%clk 0:00:11]} 57. Bxg4 {[%clk 0:00:04]}  Rxg4+ {[%clk 0:00:11]} 58. Ke3 {[%clk 0:00:04]}  Bxf5 {[%clk 0:00:08]} 59. d6 {[%clk 0:00:03]}  Rg3+ {[%clk 0:00:08]} 60. Kd2 {[%clk 0:00:03]}  e4 {[%clk 0:00:06]} 61. Rh8+ {[%clk 0:00:01]}  Kf7 {[%clk 0:00:06]} 62. d7 {[%clk 0:00:02]}  Bxd7 {[%clk 0:00:05]} 63. Rh7+ {[%clk 0:00:02]}  Kg6 {[%clk 0:00:01]} 64. Rxd7 {[%clk 0:00:02]}  f5 {[%clk 0:00:02]} 65. Ne6 {[%clk 0:00:03]}  Rg2+ {[%clk 0:00:01]} 66. Ke3 {[%clk 0:00:03]} 1-0


[Site "https://www.chess.com"]

[Event "Titled Tuesday Blitz May 18 2021"]
[White "Sengupta, Deep"]
[Black "Ibrahimli, Murad"]
[WhiteFideId "5008352"]
[BlackFideId "13410229"]
[WhiteElo "2347"]
[BlackElo "2109"]
[Result "1-0"]
[Round "02"]
[TimeControl "180+1"]
[Date "2021.05.18"]
[WhiteClock "0:00:19"]
[BlackClock "0:00:19"]

1. Nf3 {[%clk 0:03:00]}  Nf6 {[%clk 0:02:57]} 2. g3 {[%clk 0:03:00]}  g6 {[%clk 0:02:54]} 3. b3 {[%clk 0:02:59]}  Bg7 {[%clk 0:02:53]} 4. Bb2 {[%clk 0:02:59]}  O-O {[%clk 0:02:50]} 5. Bg2 {[%clk 0:02:59]}  d6 {[%clk 0:02:48]} 6. O-O {[%clk 0:02:59]}  c5 {[%clk 0:02:46]} 7. c4 {[%clk 0:02:58]}  e5 {[%clk 0:02:42]} 8. Nc3 {[%clk 0:02:53]}  Nc6 {[%clk 0:02:40]} 9. d3 {[%clk 0:02:50]}  a6 {[%clk 0:02:37]} 10. Nd2 {[%clk 0:02:43]}  Rb8 {[%clk 0:02:33]} 11. Nd5 {[%clk 0:02:40]}  Nxd5 {[%clk 0:02:30]} 12. cxd5 {[%clk 0:02:38]}  Ne7 {[%clk 0:02:26]} 13. a4 {[%clk 0:02:37]}  b5 {[%clk 0:02:24]} 14. axb5 {[%clk 0:02:36]}  axb5 {[%clk 0:02:23]} 15. b4 {[%clk 0:02:34]}  Bb7 {[%clk 0:02:08]} 16. e4 {[%clk 0:02:32]}  cxb4 {[%clk 0:02:03]} 17. Qb3 {[%clk 0:02:30]}  Qb6 {[%clk 0:01:37]} 18. Qxb4 {[%clk 0:02:28]}  Qc5 {[%clk 0:01:31]} 19. Qb3 {[%clk 0:02:20]}  Qc7 {[%clk 0:01:20]} 20. Rfc1 {[%clk 0:02:17]}  Qd7 {[%clk 0:01:17]} 21. Qb4 {[%clk 0:02:10]}  Rfc8 {[%clk 0:01:12]} 22. Ba3 {[%clk 0:02:03]}  Rxc1+ {[%clk 0:01:09]} 23. Rxc1 {[%clk 0:02:02]}  Rd8 {[%clk 0:01:08]} 24. Nb3 {[%clk 0:02:00]}  f5 {[%clk 0:00:55]} 25. Na5 {[%clk 0:01:58]}  fxe4 {[%clk 0:00:44]} 26. dxe4 {[%clk 0:01:57]}  Bh6 {[%clk 0:00:45]} 27. Rb1 {[%clk 0:01:50]}  Ba6 {[%clk 0:00:43]} 28. h3 {[%clk 0:01:40]}  Bf8 {[%clk 0:00:35]} 29. Rc1 {[%clk 0:01:39]}  Rc8 {[%clk 0:00:34]} 30. Rxc8 {[%clk 0:01:04]}  Nxc8 {[%clk 0:00:35]} 31. Nc6 {[%clk 0:01:00]}  Bg7 {[%clk 0:00:31]} 32. Bf1 {[%clk 0:00:58]}  Qb7 {[%clk 0:00:29]} 33. Qa5 {[%clk 0:00:52]}  Bf6 {[%clk 0:00:30]} 34. Bb4 {[%clk 0:00:48]}  Kf7 {[%clk 0:00:19]} 35. h4 {[%clk 0:00:46]}  h5 {[%clk 0:00:18]} 36. Bh3 {[%clk 0:00:42]}  Nb6 {[%clk 0:00:19]} 37. Bxd6 {[%clk 0:00:27]}  Nc4 {[%clk 0:00:18]} 38. Nd8+ {[%clk 0:00:27]}  Bxd8 {[%clk 0:00:19]} 39. Qxd8 {[%clk 0:00:26]}  Nxd6 {[%clk 0:00:19]} 40. Qxd6 {[%clk 0:00:23]}  b4 {[%clk 0:00:20]} 41. Be6+ {[%clk 0:00:22]}  Kg7 {[%clk 0:00:21]} 42. Qxe5+ {[%clk 0:00:22]}  Kh7 {[%clk 0:00:22]} 43. d6 {[%clk 0:00:19]}  b3 {[%clk 0:00:21]} 44. d7 {[%clk 0:00:19]}  b2 {[%clk 0:00:19]} 45. Bg8+ {[%clk 0:00:19]} 1-0


[Site "https://www.chess.com"]

[Event "Titled Tuesday Blitz May 18 2021"]
[White "Sevian, Samuel"]
[Black "Oliveira, Silvio Eduardo"]
[WhiteFideId "2040506"]
[BlackFideId "2111560"]
[WhiteElo "2973"]
[BlackElo "2302"]
[Result "1-0"]
[Round "02"]
[TimeControl "180+1"]
[Date "2021.05.18"]
[WhiteClock "0:00:37"]
[BlackClock "0:00:30"]

1. e4 {[%clk 0:02:42]}  e5 {[%clk 0:02:58]} 2. Nf3 {[%clk 0:02:42]}  Nc6 {[%clk 0:02:59]} 3. Bc4 {[%clk 0:02:42]}  Bc5 {[%clk 0:02:58]} 4. c3 {[%clk 0:02:43]}  Nf6 {[%clk 0:02:58]} 5. d4 {[%clk 0:02:43]}  exd4 {[%clk 0:02:58]} 6. e5 {[%clk 0:02:44]}  d5 {[%clk 0:02:58]} 7. Bb5 {[%clk 0:02:44]}  Ne4 {[%clk 0:02:58]} 8. cxd4 {[%clk 0:02:45]}  Bb6 {[%clk 0:02:59]} 9. Nc3 {[%clk 0:02:44]}  O-O {[%clk 0:02:59]} 10. Be3 {[%clk 0:02:45]}  Bg4 {[%clk 0:02:58]} 11. h3 {[%clk 0:02:45]}  Bh5 {[%clk 0:02:58]} 12. Qc2 {[%clk 0:02:46]}  Nxc3 {[%clk 0:02:58]} 13. bxc3 {[%clk 0:02:46]}  f6 {[%clk 0:02:59]} 14. exf6 {[%clk 0:02:47]}  Qxf6 {[%clk 0:02:59]} 15. Be2 {[%clk 0:02:46]}  Bg6 {[%clk 0:02:59]} 16. Qd2 {[%clk 0:02:46]}  h6 {[%clk 0:02:55]} 17. O-O {[%clk 0:02:46]}  Rae8 {[%clk 0:02:54]} 18. Bb5 {[%clk 0:02:44]}  Be4 {[%clk 0:02:41]} 19. Bxc6 {[%clk 0:02:41]}  Qxc6 {[%clk 0:02:26]} 20. Ne5 {[%clk 0:01:58]}  Qe6 {[%clk 0:02:24]} 21. f3 {[%clk 0:01:58]}  Bh7 {[%clk 0:02:23]} 22. Rae1 {[%clk 0:01:40]}  c6 {[%clk 0:02:21]} 23. Bf2 {[%clk 0:01:37]}  Qf5 {[%clk 0:02:16]} 24. Bg3 {[%clk 0:01:33]}  Re6 {[%clk 0:02:00]} 25. Ng4 {[%clk 0:01:32]}  Rfe8 {[%clk 0:01:56]} 26. Kh2 {[%clk 0:01:29]}  Qd3 {[%clk 0:01:47]} 27. Qf4 {[%clk 0:00:47]}  Rxe1 {[%clk 0:00:49]} 28. Rxe1 {[%clk 0:00:48]}  Rf8 {[%clk 0:00:49]} 29. Qc1 {[%clk 0:00:43]}  Qc2 {[%clk 0:00:43]} 30. Qe3 {[%clk 0:00:42]}  Qd3 {[%clk 0:00:42]} 31. Qe6+ {[%clk 0:00:42]}  Rf7 {[%clk 0:00:33]} 32. Ne5 {[%clk 0:00:38]}  Qf5 {[%clk 0:00:30]} 33. Nxf7 {[%clk 0:00:38]}  Qxf7 {[%clk 0:00:30]} 34. Qc8+ {[%clk 0:00:37]} 1-0


[Site "https://www.chess.com"]

[Event "Titled Tuesday Blitz May 18 2021"]
[White "Shahade, Gregory"]
[Black "Oparin, Grigoriy"]
[WhiteFideId "2009064"]
[BlackFideId "24125890"]
[WhiteElo "2622"]
[BlackElo "2628"]
[Result "0-1"]
[Round "02"]
[TimeControl "180+1"]
[Date "2021.05.18"]
[WhiteClock "0:00:06"]
[BlackClock "0:01:19"]

1. e4 {[%clk 0:03:00]}  e6 {[%clk 0:02:58]} 2. d4 {[%clk 0:02:59]}  b6 {[%clk 0:02:58]} 3. Bd3 {[%clk 0:02:53]}  Bb7 {[%clk 0:02:58]} 4. Nf3 {[%clk 0:02:53]}  Nf6 {[%clk 0:02:58]} 5. Qe2 {[%clk 0:02:52]}  c5 {[%clk 0:02:58]} 6. c3 {[%clk 0:02:40]}  Be7 {[%clk 0:02:55]} 7. O-O {[%clk 0:02:40]}  O-O {[%clk 0:02:51]} 8. Re1 {[%clk 0:02:40]}  Nc6 {[%clk 0:02:47]} 9. a3 {[%clk 0:02:25]}  d5 {[%clk 0:02:40]} 10. e5 {[%clk 0:02:18]}  Ne4 {[%clk 0:02:40]} 11. Nbd2 {[%clk 0:02:16]}  cxd4 {[%clk 0:02:31]} 12. Nxe4 {[%clk 0:02:01]}  dxe4 {[%clk 0:02:31]} 13. Qxe4 {[%clk 0:02:00]}  g6 {[%clk 0:02:32]} 14. cxd4 {[%clk 0:01:54]}  Na5 {[%clk 0:02:32]} 15. Qf4 {[%clk 0:01:45]}  Nb3 {[%clk 0:02:31]} 16. Rb1 {[%clk 0:01:39]}  Bxf3 {[%clk 0:02:32]} 17. Qxf3 {[%clk 0:01:35]}  Nxc1 {[%clk 0:02:32]} 18. Rbxc1 {[%clk 0:01:33]}  Qxd4 {[%clk 0:02:32]} 19. Rc7 {[%clk 0:01:20]}  Bg5 {[%clk 0:02:20]} 20. g3 {[%clk 0:01:07]}  Rad8 {[%clk 0:02:15]} 21. Bc4 {[%clk 0:01:01]}  Qxb2 {[%clk 0:02:06]} 22. h4 {[%clk 0:01:01]}  Bd2 {[%clk 0:02:06]} 23. Rd1 {[%clk 0:00:53]}  Qxe5 {[%clk 0:02:02]} 24. Rxa7 {[%clk 0:00:52]}  Rd4 {[%clk 0:01:55]} 25. Ba2 {[%clk 0:00:40]}  Qf5 {[%clk 0:01:37]} 26. Qe2 {[%clk 0:00:38]}  Bc3 {[%clk 0:01:36]} 27. Rd7 {[%clk 0:00:25]}  Rxd1+ {[%clk 0:01:33]} 28. Qxd1 {[%clk 0:00:24]}  h5 {[%clk 0:01:26]} 29. Rb7 {[%clk 0:00:20]}  Qf6 {[%clk 0:01:18]} 30. Rxb6 {[%clk 0:00:17]}  Bd4 {[%clk 0:01:18]} 31. Rb3 {[%clk 0:00:05]}  Qxf2+ {[%clk 0:01:18]} 32. Kh1 {[%clk 0:00:06]}  Qxa2 {[%clk 0:01:19]} 0-1


[Site "https://www.chess.com"]

[Event "Titled Tuesday Blitz May 18 2021"]
[White "Svane, Rasmus"]
[Black "Piesik, Piotr"]
[WhiteFideId "4657101"]
[BlackFideId "1136194"]
[WhiteElo "2669"]
[BlackElo "2369"]
[Result "1-0"]
[Round "02"]
[TimeControl "180+1"]
[Date "2021.05.18"]
[WhiteClock "0:00:19"]
[BlackClock "0:00:12"]

1. Nf3 {[%clk 0:03:00]}  g6 {[%clk 0:02:59]} 2. e4 {[%clk 0:02:59]}  Bg7 {[%clk 0:02:59]} 3. d4 {[%clk 0:03:00]}  c6 {[%clk 0:02:59]} 4. Bd3 {[%clk 0:02:59]}  d6 {[%clk 0:02:59]} 5. O-O {[%clk 0:02:58]}  Nf6 {[%clk 0:02:59]} 6. h3 {[%clk 0:02:59]}  O-O {[%clk 0:02:58]} 7. c3 {[%clk 0:02:59]}  Nbd7 {[%clk 0:02:58]} 8. Re1 {[%clk 0:03:00]}  e5 {[%clk 0:02:59]} 9. Be3 {[%clk 0:02:53]}  Qc7 {[%clk 0:02:59]} 10. Nbd2 {[%clk 0:02:53]}  b5 {[%clk 0:02:58]} 11. a4 {[%clk 0:02:51]}  bxa4 {[%clk 0:02:47]} 12. Qxa4 {[%clk 0:02:48]}  Nb6 {[%clk 0:02:46]} 13. Qa5 {[%clk 0:02:46]}  Be6 {[%clk 0:02:44]} 14. dxe5 {[%clk 0:02:42]}  dxe5 {[%clk 0:02:43]} 15. Qxe5 {[%clk 0:02:40]}  Qxe5 {[%clk 0:02:38]} 16. Nxe5 {[%clk 0:02:41]}  Nxe4 {[%clk 0:02:38]} 17. Nxc6 {[%clk 0:02:27]}  Nxd2 {[%clk 0:02:35]} 18. Bxd2 {[%clk 0:02:28]}  Rfe8 {[%clk 0:02:28]} 19. Be4 {[%clk 0:01:50]}  Nc4 {[%clk 0:02:17]} 20. Bf4 {[%clk 0:01:25]}  Nxb2 {[%clk 0:01:58]} 21. Ne7+ {[%clk 0:01:26]}  Rxe7 {[%clk 0:01:58]} 22. Bxa8 {[%clk 0:01:26]}  Bxc3 {[%clk 0:01:58]} 23. Rec1 {[%clk 0:01:10]}  Nd3 {[%clk 0:01:42]} 24. Rxc3 {[%clk 0:01:06]}  Nxf4 {[%clk 0:01:42]} 25. Rca3 {[%clk 0:01:05]}  Rc7 {[%clk 0:01:36]} 26. Rxa7 {[%clk 0:01:03]}  Rc2 {[%clk 0:01:35]} 27. Be4 {[%clk 0:00:54]}  Re2 {[%clk 0:01:31]} 28. Bf3 {[%clk 0:00:52]}  Rd2 {[%clk 0:01:31]} 29. Rd1 {[%clk 0:00:52]}  Rb2 {[%clk 0:01:28]} 30. Raa1 {[%clk 0:00:51]}  h5 {[%clk 0:01:23]} 31. Rab1 {[%clk 0:00:49]}  Ra2 {[%clk 0:01:23]} 32. Ra1 {[%clk 0:00:48]}  Rb2 {[%clk 0:01:23]} 33. Rd4 {[%clk 0:00:49]}  Ne2+ {[%clk 0:01:15]} 34. Bxe2 {[%clk 0:00:49]}  Rxe2 {[%clk 0:01:16]} 35. Rad1 {[%clk 0:00:49]}  Kg7 {[%clk 0:01:13]} 36. R4d2 {[%clk 0:00:46]}  Re4 {[%clk 0:01:12]} 37. f3 {[%clk 0:00:46]}  Rb4 {[%clk 0:01:11]} 38. Rd4 {[%clk 0:00:46]}  Rb2 {[%clk 0:01:10]} 39. R1d2 {[%clk 0:00:47]}  Rb1+ {[%clk 0:01:09]} 40. Kf2 {[%clk 0:00:47]}  Rb3 {[%clk 0:01:08]} 41. Ra4 {[%clk 0:00:46]}  Rc3 {[%clk 0:01:04]} 42. h4 {[%clk 0:00:40]}  Rb3 {[%clk 0:01:03]} 43. Rad4 {[%clk 0:00:40]}  Rc3 {[%clk 0:01:03]} 44. Kg3 {[%clk 0:00:40]}  Kf6 {[%clk 0:01:02]} 45. Rf4+ {[%clk 0:00:40]}  Kg7 {[%clk 0:01:02]} 46. Rb2 {[%clk 0:00:41]}  Ra3 {[%clk 0:01:02]} 47. Rd4 {[%clk 0:00:40]}  Kf6 {[%clk 0:01:00]} 48. Rdd2 {[%clk 0:00:40]}  Rc3 {[%clk 0:00:59]} 49. Rb7 {[%clk 0:00:40]}  Ra3 {[%clk 0:00:58]} 50. Re2 {[%clk 0:00:40]}  Rc3 {[%clk 0:00:58]} 51. Re4 {[%clk 0:00:39]}  Ra3 {[%clk 0:00:57]} 52. Rf4+ {[%clk 0:00:39]}  Kg7 {[%clk 0:00:57]} 53. Rd4 {[%clk 0:00:38]}  Kf6 {[%clk 0:00:57]} 54. Rb2 {[%clk 0:00:37]}  Rc3 {[%clk 0:00:56]} 55. Kf4 {[%clk 0:00:37]}  Ra3 {[%clk 0:00:52]} 56. Rdb4 {[%clk 0:00:37]}  Rc3 {[%clk 0:00:52]} 57. Rd2 {[%clk 0:00:34]}  Ra3 {[%clk 0:00:51]} 58. Rbd4 {[%clk 0:00:34]}  Rc3 {[%clk 0:00:51]} 59. Rd1 {[%clk 0:00:26]}  Ra3 {[%clk 0:00:51]} 60. Rh1 {[%clk 0:00:26]}  Rc3 {[%clk 0:00:36]} 61. Rb4 {[%clk 0:00:25]}  Ra3 {[%clk 0:00:35]} 62. Re4 {[%clk 0:00:26]}  Rc3 {[%clk 0:00:35]} 63. Ra4 {[%clk 0:00:26]}  Rb3 {[%clk 0:00:35]} 64. Rd4 {[%clk 0:00:25]}  Rc3 {[%clk 0:00:34]} 65. g4 {[%clk 0:00:25]}  hxg4 {[%clk 0:00:33]} 66. fxg4 {[%clk 0:00:26]}  Ra3 {[%clk 0:00:33]} 67. g5+ {[%clk 0:00:25]}  Kg7 {[%clk 0:00:33]} 68. Ke5 {[%clk 0:00:24]}  Re3+ {[%clk 0:00:29]} 69. Kd6 {[%clk 0:00:25]}  Bf5 {[%clk 0:00:29]} 70. Rc1 {[%clk 0:00:24]}  Re6+ {[%clk 0:00:27]} 71. Kc7 {[%clk 0:00:23]}  Re7+ {[%clk 0:00:26]} 72. Kb8 {[%clk 0:00:22]}  Re3 {[%clk 0:00:22]} 73. Rc7 {[%clk 0:00:21]}  Be6 {[%clk 0:00:21]} 74. Ka7 {[%clk 0:00:19]}  Rb3 {[%clk 0:00:20]} 75. Rb7 {[%clk 0:00:19]}  Ra3+ {[%clk 0:00:20]} 76. Kb8 {[%clk 0:00:19]}  Rc3 {[%clk 0:00:19]} 77. Rb6 {[%clk 0:00:19]}  Rc5 {[%clk 0:00:16]} 78. Ka7 {[%clk 0:00:19]}  Ra5+ {[%clk 0:00:16]} 79. Ra6 {[%clk 0:00:20]}  Rb5 {[%clk 0:00:16]} 80. Rb6 {[%clk 0:00:20]}  Ra5+ {[%clk 0:00:16]} 81. Kb7 {[%clk 0:00:21]}  Rc5 {[%clk 0:00:16]} 82. Rbb4 {[%clk 0:00:19]}  Rc3 {[%clk 0:00:15]} 83. Kb6 {[%clk 0:00:20]}  Rh3 {[%clk 0:00:14]} 84. Rb5 {[%clk 0:00:19]}  Rc3 {[%clk 0:00:13]} 85. Ra5 {[%clk 0:00:19]}  Rb3+ {[%clk 0:00:13]} 86. Kc5 {[%clk 0:00:20]}  Rc3+ {[%clk 0:00:14]} 87. Kb4 {[%clk 0:00:20]}  Re3 {[%clk 0:00:14]} 88. Ra8 {[%clk 0:00:19]}  Rb3+ {[%clk 0:00:14]} 89. Ka4 {[%clk 0:00:19]}  Re3 {[%clk 0:00:15]} 90. Rdd8 {[%clk 0:00:19]}  f5 {[%clk 0:00:12]} 91. Ra7+ {[%clk 0:00:19]}  Bf7 {[%clk 0:00:12]} 92. Rdd7 {[%clk 0:00:19]} 1-0


[Site "https://www.chess.com"]

[Event "Titled Tuesday Blitz May 18 2021"]
[White "gross-aleks"]
[Black "Sjugirov, Sanan"]
[BlackFideId "4189302"]
[WhiteElo "2609"]
[BlackElo "2472"]
[Result "0-1"]
[Round "02"]
[TimeControl "180+1"]
[Date "2021.05.18"]
[WhiteClock "0:00:08"]
[BlackClock "0:00:08"]

1. d4 {[%clk 0:03:00]}  Nf6 {[%clk 0:02:59]} 2. c4 {[%clk 0:03:00]}  g6 {[%clk 0:02:58]} 3. Nc3 {[%clk 0:03:00]}  d5 {[%clk 0:02:56]} 4. e3 {[%clk 0:02:52]}  Bg7 {[%clk 0:02:56]} 5. cxd5 {[%clk 0:02:52]}  Nxd5 {[%clk 0:02:55]} 6. Bc4 {[%clk 0:02:51]}  Nxc3 {[%clk 0:02:52]} 7. bxc3 {[%clk 0:02:52]}  O-O {[%clk 0:02:52]} 8. Nf3 {[%clk 0:02:51]}  c5 {[%clk 0:02:51]} 9. O-O {[%clk 0:02:50]}  Nc6 {[%clk 0:02:51]} 10. Ba3 {[%clk 0:02:44]}  b6 {[%clk 0:02:51]} 11. dxc5 {[%clk 0:02:40]}  Qc7 {[%clk 0:02:47]} 12. Nd4 {[%clk 0:02:34]}  Bb7 {[%clk 0:02:36]} 13. Be2 {[%clk 0:02:16]}  Rfd8 {[%clk 0:02:26]} 14. Qb3 {[%clk 0:01:58]}  Na5 {[%clk 0:01:59]} 15. Qb4 {[%clk 0:01:56]}  Bf8 {[%clk 0:01:47]} 16. Qb5 {[%clk 0:00:30]}  e5 {[%clk 0:01:42]} 17. cxb6 {[%clk 0:00:30]}  axb6 {[%clk 0:01:40]} 18. Bxf8 {[%clk 0:00:29]}  Rxf8 {[%clk 0:01:36]} 19. Nf3 {[%clk 0:00:28]}  Ba6 {[%clk 0:01:19]} 20. Qb2 {[%clk 0:00:27]}  Bxe2 {[%clk 0:01:17]} 21. Qxe2 {[%clk 0:00:28]}  Nc4 {[%clk 0:01:12]} 22. Rab1 {[%clk 0:00:23]}  Rfc8 {[%clk 0:01:07]} 23. Rb4 {[%clk 0:00:22]}  Ra3 {[%clk 0:01:05]} 24. Rb3 {[%clk 0:00:21]}  Ra5 {[%clk 0:01:02]} 25. Rfb1 {[%clk 0:00:20]}  Rc5 {[%clk 0:01:00]} 26. h3 {[%clk 0:00:19]}  Rd8 {[%clk 0:00:49]} 27. e4 {[%clk 0:00:19]}  Qd6 {[%clk 0:00:43]} 28. Rb5 {[%clk 0:00:18]}  Qc6 {[%clk 0:00:30]} 29. Rxc5 {[%clk 0:00:17]}  Qxc5 {[%clk 0:00:31]} 30. Rb4 {[%clk 0:00:17]}  Na5 {[%clk 0:00:29]} 31. Rb5 {[%clk 0:00:16]}  Qxc3 {[%clk 0:00:27]} 32. Rxe5 {[%clk 0:00:16]}  Nc4 {[%clk 0:00:13]} 33. Rd5 {[%clk 0:00:15]}  Ra8 {[%clk 0:00:10]} 34. Kh2 {[%clk 0:00:14]}  Qb4 {[%clk 0:00:06]} 35. e5 {[%clk 0:00:14]}  Re8 {[%clk 0:00:04]} 36. Qe4 {[%clk 0:00:13]}  b5 {[%clk 0:00:04]} 37. Qf4 {[%clk 0:00:12]}  Qe7 {[%clk 0:00:03]} 38. Rxb5 {[%clk 0:00:12]}  Na3 {[%clk 0:00:03]} 39. Rb6 {[%clk 0:00:10]}  Nc2 {[%clk 0:00:03]} 40. Rc6 {[%clk 0:00:09]}  Nb4 {[%clk 0:00:03]} 41. Rc4 {[%clk 0:00:08]}  Nd5 {[%clk 0:00:03]} 42. Qg4 {[%clk 0:00:08]}  Nb6 {[%clk 0:00:03]} 43. Rc6 {[%clk 0:00:08]}  Nd5 {[%clk 0:00:03]} 44. Rd6 {[%clk 0:00:08]}  Nc3 {[%clk 0:00:03]} 45. h4 {[%clk 0:00:08]}  Nb5 {[%clk 0:00:03]} 46. Rf6 {[%clk 0:00:08]}  Nc7 {[%clk 0:00:03]} 47. h5 {[%clk 0:00:08]}  Nd5 {[%clk 0:00:03]} 48. Rd6 {[%clk 0:00:09]}  Nc7 {[%clk 0:00:03]} 49. hxg6 {[%clk 0:00:08]}  hxg6 {[%clk 0:00:04]} 50. Rc6 {[%clk 0:00:08]}  Ne6 {[%clk 0:00:04]} 51. Rd6 {[%clk 0:00:08]}  Qc7 {[%clk 0:00:04]} 52. Kg3 {[%clk 0:00:08]}  Nf8 {[%clk 0:00:04]} 53. Qf4 {[%clk 0:00:07]}  Ne6 {[%clk 0:00:05]} 54. Qf6 {[%clk 0:00:08]}  Ng7 {[%clk 0:00:05]} 55. a4 {[%clk 0:00:07]}  Nh5+ {[%clk 0:00:06]} 56. Kg4 {[%clk 0:00:07]}  Nxf6+ {[%clk 0:00:06]} 57. Rxf6 {[%clk 0:00:07]}  Qc4+ {[%clk 0:00:07]} 58. Rf4 {[%clk 0:00:08]}  Qe6+ {[%clk 0:00:07]} 59. Kg3 {[%clk 0:00:08]}  Qe7 {[%clk 0:00:07]} 60. Ng5 {[%clk 0:00:09]}  Qxg5+ {[%clk 0:00:07]} 61. Kf3 {[%clk 0:00:08]}  Qxe5 {[%clk 0:00:08]} 62. g3 {[%clk 0:00:08]}  Qe2+ {[%clk 0:00:08]} 0-1


[Site "https://www.chess.com"]